fUST/lending_fUST_20250930
["ID","MTS","AMOUNT","RATE_DAILY","PERIOD"]
[388458062,1759176649985,-480.0,0.00022826,2]
[388458063,1759176649994,-480.0,0.00022826,2]
[388458064,1759176650003,-480.0,0.00022826,2]
[388458065,1759176650013,-480.0,0.00022826,2]
[388458066,1759176650022,-480.0,0.00022826,2]
[388458067,1759176650031,-536.3,0.00022826,2]
[388458068,1759176650040,-501.39,0.00022826,2]
[388458069,1759176650049,-1049.27,0.00022826,2]
[388458070,1759176650058,-480.0,0.00022826,2]
[388458071,1759176650067,-480.0,0.00022826,2]
[388458072,1759176650076,-570.57,0.00022826,2]
[388458073,1759176650085,-480.0,0.00022826,2]
[388458074,1759176650095,-488.1,0.00022826,2]
[388458075,1759176650104,-587.64,0.00022826,2]
[388458076,1759176650113,-480.0,0.00022826,2]
[388458077,1759176650123,-480.0,0.00022826,2]
[388458078,1759176650131,-480.0,0.00022826,2]
[388458079,1759176650142,-480.0,0.00022826,2]
[388458080,1759176650152,-638.77,0.00022826,2]
[388458081,1759176650161,-1588.63,0.00022826,2]
[388458082,1759176650171,-1813.72,0.00022826,2]
[388458083,1759176650180,-480.0,0.00022826,2]
[388458084,1759176650189,-1000.0,0.00022826,2]
[388458085,1759176650199,-1000.0,0.00022826,2]
[388458086,1759176650208,-1000.0,0.00022826,2]
[388458087,1759176650217,-480.0,0.00022826,2]
[388458088,1759176650226,-483.4272956,0.00022826,2]
[388458089,1759176650236,-480.0,0.00022826,2]
[388458090,1759176650245,-480.0,0.00022826,2]
[388458091,1759176650254,-480.0,0.00022826,2]
[388458092,1759176650263,-480.0,0.00022826,2]
[388458093,1759176650272,-480.0,0.00022826,2]
[388458094,1759176650281,-611.83,0.00022826,2]
[388458095,1759176650290,-480.0,0.00022826,2]
[388458096,1759176650299,-168.0,0.00022832,2]
[388458097,1759176650308,-1097.28306443,0.0002286,2]
[388458098,1759176650317,-500.0,0.00022872,2]
[388458099,1759176650326,-500.0,0.00022872,2]
[388458100,1759176650335,-500.0,0.00022872,2]
[388458101,1759176650343,-616.25763511,0.00022873,2]
[388458102,1759176650352,-500.0,0.00022873,2]
[388458103,1759176650361,-500.0,0.00022873,2]
[388458104,1759176650371,-500.0,0.00022873,2]
[388458105,1759176650379,-279.20371496,0.00022873,2]
[388458106,1759176650389,-515.16845242,0.00022873,2]
[388458107,1759176650398,-500.0,0.00022873,2]
[388458108,1759176650408,-500.0,0.00022873,2]
[388458109,1759176650417,-500.0,0.00022873,2]
[388458110,1759176650426,-500.0,0.00022873,2]
[388458111,1759176650435,-500.0,0.00022873,2]
[388458112,1759176650444,-509.74403695,0.00022873,2]
[388458113,1759176650454,-500.0,0.00022873,2]
[388458114,1759176650466,-500.0,0.00022873,2]
[388458115,1759176650475,-500.0,0.00022873,2]
[388458116,1759176650484,-500.0,0.00022873,2]
[388458117,1759176650493,-500.0,0.00022873,2]
[388458118,1759176650503,-500.0,0.00022873,2]
[388458119,1759176650511,-500.0,0.00022873,2]
[388458120,1759176650520,-500.0,0.00022873,2]
[388458121,1759176650529,-572.08826976,0.00022873,2]
[388458122,1759176650541,-500.0,0.00022873,2]
[388458123,1759176650550,-500.0,0.00022873,2]
[388458124,1759176650559,-500.0,0.00022873,2]
[388458125,1759176650568,-500.0,0.00022873,2]
[388458126,1759176650577,-500.0,0.00022873,2]
[388458127,1759176650586,-500.0,0.00022873,2]
[388458128,1759176650595,-500.0,0.00022873,2]
[388458129,1759176650604,-500.0,0.00022873,2]
[388458130,1759176650613,-500.0,0.00022873,2]
[388458131,1759176650622,-500.0,0.00022873,2]
[388458132,1759176650631,-500.0,0.00022873,2]
[388458133,1759176650641,-500.0,0.00022873,2]
[388458134,1759176650650,-500.0,0.00022873,2]
[388458135,1759176650659,-500.0,0.00022873,2]
[388458136,1759176650668,-500.0,0.00022873,2]
[388458137,1759176650677,-500.0,0.00022873,2]
[388458138,1759176650686,-500.0,0.00022873,2]
[388458139,1759176650695,-500.0,0.00022877,2]
[388458140,1759176650705,-500.0,0.00022896,2]
[388458141,1759176650715,-500.0,0.00022896,2]
[388458142,1759176650724,-582.95905103,0.00022896,2]
[388458143,1759176650734,-501.18615439,0.00022967,2]
[388458144,1759176650743,-200.32531048,0.00022967,2]
[388458145,1759176651147,-835.83,0.00021979,2]
[388458146,1759176651156,-835.83,0.00022253,2]
[388458147,1759176651167,-835.83,0.00022527,2]
[388458148,1759176651176,-835.83,0.00022801,2]
[388458149,1759176651186,-299.67468952,0.00022967,2]
[388458150,1759176651196,-1638.93877617,0.00022989,2]
[388458151,1759176651206,-10000.0,0.00022996,2]
[388458152,1759176651215,-160.0,0.00023,2]
[388458153,1759176651224,-163.0,0.00023,7]
[388458154,1759176651234,-500.0,0.0002302,2]
[388458155,1759176651243,-501.15189891,0.0002302,2]
[388458156,1759176651252,-950.20235967,0.00023026,2]
[388458157,1759176651261,-500.0,0.00023073,2]
[388458158,1759176651271,-500.0,0.00023073,2]
[388458159,1759176651279,-164.93279931,0.00023073,2]
[388458160,1759176651289,-500.0,0.00023073,2]
[388458161,1759176651298,-158.31676954,0.00023073,2]
[388458162,1759176651307,-500.0,0.00023073,2]
[388458163,1759176651316,-480.0,0.00023075,2]
[388458164,1759176651325,-480.0,0.00023075,2]
[388458165,1759176651334,-480.0,0.00023075,2]
[388458166,1759176651343,-703.47,0.00023075,2]
[388458167,1759176651353,-2642.2,0.00023075,2]
[388458168,1759176651362,-480.0,0.00023075,2]
[388458169,1759176651371,-480.0,0.00023075,2]
[388458170,1759176651380,-480.0,0.00023075,2]
[388458171,1759176651390,-1435.73,0.00023075,2]
[388458172,1759176651400,-968.74,0.00023075,2]
[388458173,1759176651409,-480.0,0.00023075,2]
[388458174,1759176651418,-2684.38,0.00023075,2]
[388458175,1759176651427,-619.36,0.00023075,2]
[388458176,1759176651436,-835.83,0.00023075,2]
[388458177,1759176651445,-255.15234532,0.00023077,2]
[388458178,1759176651565,-224.84765468,0.00023077,2]
[388458179,1759176651575,-480.0,0.00023077,2]
[388458180,1759176651584,-480.0,0.00023077,2]
[388458181,1759176651594,-480.0,0.00023077,2]
[388458182,1759176651603,-1509.01,0.00023077,2]
[388458183,1759176651613,-627.56801052,0.00023077,2]
[388458184,1759176651622,-480.0,0.00023077,2]
[388458185,1759176651631,-1883.86,0.00023077,2]
[388458186,1759176651640,-636.88,0.00023077,2]
[388458187,1759176651649,-517.28,0.00023077,2]
[388458188,1759176651658,-480.0,0.00023077,2]
[388458189,1759176651667,-1117.31,0.00023077,2]
[388458190,1759176651677,-760.29,0.00023077,2]
[388458191,1759176651686,-480.0,0.00023077,2]
[388458192,1759176651695,-958.85,0.00023077,2]
[388458193,1759176651704,-480.0,0.00023077,2]
[388458194,1759176651714,-480.0,0.00023077,2]
[388458195,1759176651724,-1403.22,0.00023077,2]
[388458196,1759176651734,-480.0,0.00023077,2]
[388458197,1759176651743,-1556.87,0.00023077,2]
[388458198,1759176651752,-480.0,0.00023077,2]
[388458199,1759176651762,-537.09,0.00023077,2]
[388458200,1759176651939,-480.0,0.00023077,2]
[388458201,1759176651948,-480.0,0.00023077,2]
[388458202,1759176651958,-753.32,0.00023077,2]
[388458203,1759176651967,-956.0,0.00023077,2]
[388458204,1759176651976,-6610.25,0.00023077,2]
[388458205,1759176651986,-1490.14,0.00023077,2]
[388458206,1759176651995,-2189.71,0.00023077,2]
[388458207,1759176652005,-480.0,0.00023077,2]
[388458208,1759176652015,-480.0,0.00023077,2]
[388458209,1759176652024,-2218.2,0.00023077,2]
[388458210,1759176652034,-480.0,0.00023077,2]
[388458211,1759176652043,-600.44,0.00023077,2]
[388458212,1759176652052,-1554.07,0.00023077,2]
[388458213,1759176652061,-480.0,0.00023077,2]
[388458214,1759176652071,-748.07,0.00023079,2]
[388458215,1759176652081,-480.0,0.00023079,2]
[388458216,1759176652091,-480.0,0.00023079,2]
[388458217,1759176652100,-480.0,0.00023079,2]
[388458218,1759176652109,-480.0,0.00023079,2]
[388458219,1759176652118,-480.0,0.00023079,2]
[388458220,1759176652128,-480.0,0.00023079,2]
[388458221,1759176652137,-373.39848243,0.00023079,2]
[388458222,1759176652146,-480.0,0.00023079,2]
[388458223,1759176652157,-480.0,0.00023079,2]
[388458224,1759176652167,-480.0,0.00023079,2]
[388458225,1759176652176,-480.0,0.00023079,2]
[388458226,1759176652186,-480.0,0.00023079,2]
[388458227,1759176652196,-480.0,0.00023079,2]
[388458228,1759176652206,-480.0,0.00023079,2]
[388458229,1759176652215,-480.0,0.00023079,2]
[388458230,1759176652225,-480.0,0.00023079,2]
[388458231,1759176652234,-518.08,0.00023079,2]
[388458232,1759176652243,-1279.16,0.00023079,2]
[388458233,1759176652253,-672.97,0.00023079,2]
[388458234,1759176652262,-778.93,0.00023079,2]
[388458235,1759176652273,-955.72,0.00023079,2]
[388458236,1759176652282,-497.45,0.00023079,2]
[388458237,1759176652291,-852.82,0.00023079,2]
[388458238,1759176652300,-480.0,0.00023079,2]
[388458239,1759176652310,-790.08,0.00023079,2]
[388458240,1759176652319,-480.0,0.00023079,2]
[388458241,1759176652329,-1683.38,0.00023079,2]
[388458242,1759176652338,-480.0,0.00023079,2]
[388458243,1759176652348,-480.0,0.00023079,2]
[388458244,1759176652357,-899.2,0.00023079,2]
[388458245,1759176652366,-364.21536113,0.00023079,2]
[388458246,1759176652378,-115.78463887,0.00023079,2]
[388458247,1759176652388,-519.13115702,0.00023079,2]
[388458248,1759176652399,-3159.47884298,0.00023079,2]
[388458249,1759176652408,-694.8,0.00023079,2]
[388458250,1759176652418,-480.0,0.00023079,2]
[388458251,1759176652427,-1134.28206677,0.00023079,2]
[388458252,1759176652438,-711.60793323,0.00023079,2]
[388458253,1759176652447,-480.0,0.00023079,2]
[388458254,1759176652461,-480.0,0.00023079,2]
[388458255,1759176652470,-398.07020618,0.00023079,2]
[388458256,1759176652883,-96.52979382,0.00023079,2]
[388458257,1759176652893,-480.0,0.00023079,2]
[388458258,1759176652902,-3938.21,0.00023079,2]
[388458259,1759176652911,-480.0,0.00023079,2]
[388458260,1759176652921,-1050.49,0.00023079,2]
[388458261,1759176652931,-480.0,0.00023079,2]
[388458262,1759176652941,-480.0,0.0002308,2]
[388458263,1759176652950,-480.0,0.0002308,2]
[388458264,1759176652959,-480.0,0.0002308,2]
[388458265,1759176652968,-480.0,0.0002308,2]
[388458266,1759176652979,-480.0,0.0002308,2]
[388458267,1759176652988,-480.0,0.0002308,2]
[388458268,1759176652997,-480.0,0.0002308,2]
[388458269,1759176653006,-480.0,0.0002308,2]
[388458270,1759176653016,-480.0,0.0002308,2]
[388458271,1759176653026,-480.0,0.0002308,2]
[388458272,1759176653036,-480.0,0.0002308,2]
[388458273,1759176653045,-480.0,0.0002308,2]
[388458274,1759176653054,-480.0,0.0002308,2]
[388458275,1759176653064,-1088.55,0.0002308,2]
[388458276,1759176653073,-480.0,0.0002308,2]
[388458277,1759176653083,-537.03,0.0002308,2]
[388458278,1759176653092,-480.0,0.0002308,2]
[388458279,1759176653101,-480.0,0.0002308,2]
[388458280,1759176653110,-14.2202062,0.0002308,2]
[388458281,1759176653122,-465.7797938,0.0002308,2]
[388458282,1759176653131,-695.7,0.0002308,2]
[388458283,1759176653141,-480.0,0.0002308,2]
[388458284,1759176653150,-480.0,0.0002308,2]
[388458285,1759176653160,-480.0,0.0002308,2]
[388458286,1759176653170,-480.0,0.0002308,2]
[388458287,1759176653179,-1166.45,0.0002308,2]
[388458288,1759176653189,-480.0,0.0002308,2]
[388458289,1759176653199,-862.32,0.0002308,2]
[388458290,1759176653208,-823.38,0.0002308,2]
[388458291,1759176653218,-843.7,0.0002308,2]
[388458292,1759176653227,-623.05,0.0002308,2]
[388458293,1759176653237,-480.0,0.0002308,2]
[388458294,1759176653247,-480.0,0.0002308,2]
[388458295,1759176653256,-480.0,0.0002308,2]
[388458296,1759176653266,-1062.46,0.0002308,2]
[388458297,1759176653275,-480.0,0.0002308,2]
[388458298,1759176653284,-536.19493676,0.0002308,2]
[388458299,1759176653293,-480.0,0.0002308,2]
[388458300,1759176653303,-480.0,0.0002308,2]
[388458301,1759176653312,-480.0,0.0002308,2]
[388458302,1759176653321,-480.0,0.0002308,2]
[388458303,1759176653331,-489.79,0.0002308,2]
[388458304,1759176653340,-602.5096306,0.0002308,2]
[388458305,1759176653349,-480.0,0.0002308,2]
[388458306,1759176653358,-480.0,0.0002308,2]
[388458307,1759176653368,-480.0,0.0002308,2]
[388458308,1759176653377,-480.0,0.0002308,2]
[388458309,1759176653387,-570.79,0.0002308,2]
[388458310,1759176653397,-758.01,0.0002308,2]
[388458311,1759176653406,-591.81,0.0002308,2]
[388458312,1759176653415,-480.0,0.0002308,2]
[388458313,1759176653426,-553.26,0.0002308,2]
[388458314,1759176653435,-480.0,0.0002308,2]
[388458315,1759176653444,-606.13,0.0002308,2]
[388458316,1759176653453,-490.52,0.0002308,2]
[388458317,1759176653466,-730.13,0.0002308,2]
[388458318,1759176653476,-480.0,0.0002308,2]
[388458319,1759176653485,-628.38,0.0002308,2]
[388458320,1759176653494,-113.87873881,0.0002308,2]
[388458321,1759176653506,-366.12126119,0.0002308,2]
[388458322,1759176653516,-480.0,0.0002308,2]
[388458323,1759176653525,-480.0,0.0002308,2]
[388458324,1759176653535,-74.24751001,0.0002308,2]
[388458325,1759176653564,-480.0,0.00021981,2]
[388458326,1759176653574,-405.75248999,0.0002308,2]
[388458327,1759176653583,-628.21,0.0002308,2]
[388458328,1759176653593,-480.0,0.0002308,2]
[388458329,1759176653603,-480.0,0.0002308,2]
[388458330,1759176653612,-577.46,0.0002308,2]
[388458331,1759176653622,-604.98,0.0002308,2]
[388458332,1759176653632,-480.0,0.0002308,2]
[388458333,1759176653641,-842.47,0.0002308,2]
[388458334,1759176653650,-1537.8,0.0002308,2]
[388458335,1759176653660,-480.0,0.0002308,2]
[388458336,1759176653670,-480.0,0.0002308,2]
[388458337,1759176653680,-490.86,0.0002308,2]
[388458338,1759176653690,-640.46,0.0002308,2]
[388458339,1759176653700,-480.0,0.0002308,2]
[388458340,1759176653710,-480.0,0.0002308,2]
[388458341,1759176653720,-480.0,0.0002308,2]
[388458342,1759176653730,-1640.88,0.0002308,2]
[388458343,1759176653740,-480.0,0.0002308,2]
[388458344,1759176653750,-480.0,0.0002308,2]
[388458345,1759176653759,-480.0,0.0002308,2]
[388458346,1759176653769,-775.04,0.0002308,2]
[388458347,1759176653779,-480.0,0.0002308,2]
[388458348,1759176653789,-480.0,0.0002308,2]
[388458349,1759176653800,-545.04,0.0002308,2]
[388458350,1759176653816,-599.5,0.0002308,2]
[388458351,1759176653825,-480.0,0.0002308,2]
[388458352,1759176653834,-480.0,0.0002308,2]
[388458353,1759176653843,-480.0,0.0002308,2]
[388458354,1759176653853,-480.0,0.0002308,2]
[388458355,1759176653863,-577.36,0.0002308,2]
[388458356,1759176653872,-480.0,0.0002308,2]
[388458357,1759176653881,-659.41,0.0002308,2]
[388458358,1759176653893,-1370.88,0.0002308,2]
[388458359,1759176653904,-578.91,0.0002308,2]
[388458360,1759176653914,-963.73,0.0002308,2]
[388458361,1759176653924,-780.14,0.0002308,2]
[388458362,1759176653934,-480.0,0.0002308,2]
[388458363,1759176653943,-960.2,0.0002308,2]
[388458364,1759176653953,-480.0,0.0002308,2]
[388458365,1759176653962,-480.0,0.0002308,2]
[388458366,1759176653972,-480.0,0.0002308,2]
[388458367,1759176653982,-499.50333973,0.0002308,2]
[388458368,1759176653991,-480.0,0.0002308,2]
[388458369,1759176654000,-480.0,0.0002308,2]
[388458370,1759176654010,-480.0,0.0002308,2]
[388458371,1759176654020,-1708.59,0.0002308,2]
[388458372,1759176654030,-480.0,0.00023081,2]
[388458373,1759176654039,-480.0,0.00023081,2]
[388458374,1759176654048,-480.0,0.00023081,2]
[388458375,1759176654058,-480.0,0.00023083,2]
[388458376,1759176654067,-480.0,0.00023083,2]
[388458377,1759176654076,-480.0,0.00023083,2]
[388458378,1759176654085,-480.0,0.00023083,2]
[388458379,1759176654095,-500.0,0.00023083,2]
[388458380,1759176654104,-480.0,0.00023095,2]
[388458381,1759176654113,-480.0,0.00023095,2]
[388458382,1759176654123,-480.0,0.00023095,2]
[388458383,1759176654132,-480.0,0.00023095,2]
[388458384,1759176654144,-520.0,0.00023095,3]
[388458385,1759176654153,-499.52201721,0.00023096,2]
[388458386,1759176654162,-480.0,0.00023096,2]
[388458387,1759176654172,-480.0,0.000231,2]
[388458388,1759176654182,-480.0,0.000231,2]
[388458389,1759176654191,-500.0,0.000231,2]
[388458390,1759176654201,-480.0,0.000231,2]
[388458391,1759176654210,-480.0,0.000231,2]
[388458392,1759176654258,-480.0,0.000231,2]
[388458393,1759176654268,-480.0,0.000231,2]
[388458394,1759176654277,-565.8,0.000231,2]
[388458395,1759176654287,-480.0,0.000231,2]
[388458396,1759176654296,-480.0,0.000231,2]
[388458397,1759176654306,-480.0,0.000231,2]
[388458398,1759176654315,-480.0,0.000231,2]
[388458399,1759176654324,-480.0,0.000231,2]
[388458400,1759176654333,-480.0,0.000231,2]
[388458401,1759176654342,-480.0,0.000231,2]
[388458402,1759176654352,-419.22779601,0.000231,2]
[388458403,1759176654362,-480.0,0.000231,2]
[388458404,1759176654371,-480.0,0.000231,2]
[388458405,1759176654380,-480.0,0.000231,2]
[388458406,1759176654389,-480.0,0.000231,2]
[388458407,1759176654402,-480.0,0.000231,2]
[388458408,1759176654411,-480.0,0.000231,2]
[388458409,1759176654421,-480.0,0.000231,2]
[388458410,1759176654430,-480.0,0.000231,2]
[388458411,1759176654440,-480.0,0.000231,2]
[388458412,1759176654452,-480.0,0.000231,2]
[388458413,1759176654470,-480.0,0.000231,2]
[388458414,1759176654479,-480.0,0.000231,2]
[388458415,1759176654488,-480.0,0.000231,2]
[388458416,1759176654498,-480.0,0.000231,2]
[388458417,1759176654508,-1195.47,0.000231,2]
[388458418,1759176654517,-519.28,0.000231,2]
[388458419,1759176654527,-480.0,0.000231,2]
[388458420,1759176654536,-480.0,0.000231,2]
[388458421,1759176654545,-480.0,0.000231,2]
[388458422,1759176654554,-480.0,0.000231,2]
[388458423,1759176654563,-480.0,0.000231,2]
[388458424,1759176654573,-480.0,0.000231,2]
[388458425,1759176654582,-480.0,0.000231,2]
[388458426,1759176654591,-480.0,0.000231,2]
[388458427,1759176654599,-788.5,0.000231,2]
[388458428,1759176654608,-967.39,0.000231,2]
[388458429,1759176654617,-480.0,0.000231,2]
[388458430,1759176654627,-480.0,0.000231,2]
[388458431,1759176654636,-480.0,0.000231,2]
[388458432,1759176654646,-480.0,0.000231,2]
[388458433,1759176654655,-480.0,0.000231,2]
[388458434,1759176654665,-480.0,0.000231,2]
[388458435,1759176654674,-480.0,0.000231,2]
[388458436,1759176654683,-480.0,0.000231,2]
[388458437,1759176654692,-480.0,0.000231,2]
[388458438,1759176654701,-480.0,0.000231,2]
[388458439,1759176654711,-480.0,0.000231,2]
[388458440,1759176654720,-480.0,0.000231,2]
[388458441,1759176654730,-480.0,0.000231,2]
[388458442,1759176654739,-480.0,0.000231,2]
[388458443,1759176654748,-480.0,0.000231,2]
[388458444,1759176654758,-480.0,0.000231,2]
[388458445,1759176654767,-761.95,0.000231,2]
[388458446,1759176654777,-480.0,0.000231,2]
[388458447,1759176654786,-480.0,0.000231,2]
[388458448,1759176654795,-480.0,0.000231,2]
[388458449,1759176654804,-563.66,0.000231,2]
[388458450,1759176654814,-619.03,0.000231,2]
[388458451,1759176654823,-480.0,0.000231,2]
[388458452,1759176654832,-480.0,0.000231,2]
[388458453,1759176654841,-480.0,0.000231,2]
[388458454,1759176654850,-480.0,0.000231,2]
[388458455,1759176654859,-480.0,0.000231,2]
[388458456,1759176654868,-480.0,0.000231,2]
[388458457,1759176654877,-1826.66,0.000231,2]
[388458458,1759176654886,-480.0,0.000231,2]
[388458459,1759176654896,-480.0,0.000231,2]
[388458460,1759176654905,-566.34,0.000231,2]
[388458461,1759176654915,-480.0,0.000231,2]
[388458462,1759176654924,-480.0,0.000231,2]
[388458463,1759176654933,-480.0,0.000231,2]
[388458464,1759176654943,-480.0,0.000231,2]
[388458465,1759176654952,-531.75,0.000231,2]
[388458466,1759176654961,-585.81,0.000231,2]
[388458467,1759176654970,-480.0,0.000231,2]
[388458468,1759176654979,-499.32,0.000231,2]
[388458469,1759176654988,-460.18967431,0.000231,2]
[388458470,1759176654997,-480.0,0.000231,2]
[388458471,1759176655006,-480.0,0.000231,2]
[388458472,1759176655016,-480.0,0.000231,2]
[388458473,1759176655025,-480.0,0.000231,2]
[388458474,1759176655034,-480.0,0.000231,2]
[388458475,1759176655043,-480.0,0.000231,2]
[388458476,1759176655052,-536.3,0.000231,2]
[388458477,1759176655061,-108.85425049,0.000231,2]
[388458478,1759176655074,-392.53574951,0.000231,2]
[388458479,1759176655083,-1049.27,0.000231,2]
[388458480,1759176655092,-480.0,0.000231,2]
[388458481,1759176655101,-480.0,0.000231,2]
[388458482,1759176655110,-570.57,0.000231,2]
[388458483,1759176655119,-480.0,0.000231,2]
[388458484,1759176655128,-488.1,0.000231,2]
[388458485,1759176655137,-587.64,0.000231,2]
[388458486,1759176655147,-480.0,0.000231,2]
[388458487,1759176655158,-480.0,0.000231,2]
[388458488,1759176655168,-480.0,0.000231,2]
[388458489,1759176655177,-638.77,0.000231,2]
[388458490,1759176655186,-1588.63,0.000231,2]
[388458491,1759176655195,-1813.72,0.000231,2]
[388458492,1759176655205,-480.0,0.000231,2]
[388458493,1759176655215,-480.0,0.000231,2]
[388458494,1759176655224,-480.0,0.000231,2]
[388458495,1759176655236,-480.0,0.000231,2]
[388458496,1759176655250,-611.83,0.000231,2]
[388458497,1759176655259,-151.0,0.000231,7]
[388458498,1759176655268,-151.0,0.000231,7]
[388458499,1759176655277,-168.0,0.00023153,2]
[388458500,1759176655286,-168.0,0.00023202,2]
[388458501,1759176655295,-168.0,0.00023226,2]
[388458502,1759176655304,-176.55544409,0.00023255,2]
[388458503,1759176655313,-500.0,0.00023287,2]
[388458504,1759176655322,-1000.0,0.00023287,5]
[388458505,1759176655331,-151.0,0.00023287,7]
[388458506,1759176655341,-480.0,0.00023349,2]
[388458507,1759176655350,-480.0,0.00023349,2]
[388458508,1759176655359,-480.0,0.00023349,2]
[388458509,1759176655368,-703.47,0.00023349,2]
[388458510,1759176655377,-2642.2,0.00023349,2]
[388458511,1759176655385,-480.0,0.00023349,2]
[388458512,1759176655395,-480.0,0.00023349,2]
[388458513,1759176655405,-480.0,0.00023349,2]
[388458514,1759176655414,-1435.73,0.00023349,2]
[388458515,1759176655423,-968.74,0.00023349,2]
[388458516,1759176655432,-480.0,0.00023349,2]
[388458517,1759176655441,-2684.38,0.00023349,2]
[388458518,1759176655450,-619.36,0.00023349,2]
[388458519,1759176655463,-835.83,0.00023349,2]
[388458520,1759176655472,-480.0,0.00023351,2]
[388458521,1759176655481,-480.0,0.00023351,2]
[388458522,1759176655490,-480.0,0.00023351,2]
[388458523,1759176655500,-480.0,0.00023351,2]
[388458524,1759176655510,-1509.01,0.00023351,2]
[388458525,1759176655519,-480.0,0.00023351,2]
[388458526,1759176655529,-1883.86,0.00023351,2]
[388458527,1759176655538,-636.88,0.00023351,2]
[388458528,1759176655547,-517.28,0.00023351,2]
[388458529,1759176655556,-480.0,0.00023351,2]
[388458530,1759176655565,-1117.31,0.00023351,2]
[388458531,1759176655574,-760.29,0.00023351,2]
[388458532,1759176655583,-480.0,0.00023351,2]
[388458533,1759176655592,-958.85,0.00023351,2]
[388458534,1759176655601,-480.0,0.00023351,2]
[388458535,1759176655611,-480.0,0.00023351,2]
[388458536,1759176655619,-1403.22,0.00023351,2]
[388458537,1759176655629,-480.0,0.00023351,2]
[388458538,1759176655638,-1556.87,0.00023351,2]
[388458539,1759176655647,-480.0,0.00023351,2]
[388458540,1759176655657,-537.09,0.00023351,2]
[388458541,1759176655665,-480.0,0.00023351,2]
[388458542,1759176655675,-480.0,0.00023351,2]
[388458543,1759176655684,-753.32,0.00023351,2]
[388458544,1759176655693,-956.0,0.00023351,2]
[388458545,1759176655702,-6610.25,0.00023351,2]
[388458546,1759176655711,-1490.14,0.00023351,2]
[388458547,1759176655720,-2189.71,0.00023351,2]
[388458548,1759176655728,-480.0,0.00023351,2]
[388458549,1759176655738,-614.6708629,0.00023351,2]
[388458550,1759176655747,-2218.2,0.00023351,2]
[388458551,1759176655756,-480.0,0.00023351,2]
[388458552,1759176655765,-600.44,0.00023351,2]
[388458553,1759176655774,-1554.07,0.00023351,2]
[388458554,1759176655783,-480.0,0.00023351,2]
[388458555,1759176655792,-748.07,0.00023353,2]
[388458556,1759176655801,-480.0,0.00023353,2]
[388458557,1759176655811,-480.0,0.00023353,2]
[388458558,1759176655820,-480.0,0.00023353,2]
[388458559,1759176655830,-480.0,0.00023353,2]
[388458560,1759176655840,-496.63010083,0.00023353,2]
[388458561,1759176655849,-480.0,0.00023353,2]